[Event "26th Abu Dhabi Master 2019"]
[Site "Abu Dhabi"]
[Date "2019.08.04"]
[Round "4.31"]
[White "Mullick, Raahil"]
[Black "Shevchenko, Kirill"]
[Result "1/2-1/2"]
[ECO "B90"]
[WhiteElo "2211"]
[BlackElo "2536"]
[Annotator "ChessBase"]
[PlyCount "141"]
[EventDate "2019.08.02"]
[EventType "swiss"]
[EventCountry "UAE"]
[SourceTitle "playchess.com"]
[Source "ChessBase"]
[SourceQuality "1"]
[TimeControl "5400+30"]

1. e4 {[%emt 0:00:00]} c5 {[%emt 0:00:00]} 2. Nf3 {[%emt 0:00:00]} d6 {[%emt 0:00:04]} 3. d4 {[%emt 0:00:00]} cxd4 {[%emt 0:00:06]} 4. Nxd4 {[%emt 0:00:00]} Nf6 {[%emt 0:00:06]} 5. Nc3 {[%emt 0:00:00]} a6 {[%emt 0:00:05]} 6. Be3 {[%emt 0:00:00]} e5 {[%emt 0:00:06]} 7. Nb3 {[%emt 0:00:03]} Be6 {[%emt 0:00:04]} 8. f3 {[%emt 0:00:08]} h5 {[%emt 0:00:06]} 9. Nd5 {[%emt 0:00:02]} Bxd5 {[%emt 0:00:22]} 10. exd5 {[%emt 0:00:10]} Nbd7 {[%emt 0:00:09]} 11. Qd2 {[%emt 0:00:10]} g6 {[%emt 0:00:03]} 12. Be2 {[%emt 0:00:07]} Bg7 {[%emt 0:00:15]} 13. O-O {[%emt 0:00:07]} b6 {[%emt 0:00:04]} 14. c4 {[%emt 0:00:14]} O-O {[%emt 0:00:07]} 15. Rad1 {[%emt 0:00:16]} Re8 {[%emt 0:01:04]} 16. Kh1 {[%emt 0:00:18]} Rc8 {[%emt 0:00:33]} 17. Na1 {[%emt 0:12:15]} e4 {[%emt 0:04:39]} 18. Nc2 {[%emt 0:03:53]} exf3 {[%emt 0:05:29]} 19. gxf3 {[%emt 0:02:46]} b5 {[%emt 0:08:53]} 20. Nd4 {[%emt 0:18:11]} Qe7 {[%emt 0:13:21]} 21. Bg5 {[%emt 0:00:51]} bxc4 {[%emt 0:01:39]} 22. Rfe1 {[%emt 0:03:19]} Qf8 {[%emt 0:07:53]} 23. Nc6 {[%emt 0:24:03]} Ne5 {[%emt 0:06:44]} 24. Rc1 {[%emt 0:02:38]} Nxc6 {[%emt 0:23:38]} 25. dxc6 {[%emt 0:00:30]} Rxc6 {[%emt 0:00:30]} 26. Bxc4 {[%emt 0:00:30]} Rxe1+ 27. Qxe1 {[%emt 0:10:01]} Qc8 {[%emt 0:01:00]} 28. Bd3 {[%emt 0:08:36]} a5 {[%emt 0:07:56]} 29. Rd1 {[%emt 0:07:51]} Rc5 {[%emt 0:01:46]} 30. Bf4 {[%emt 0:00:43]} Qb7 {[%emt 0:06:47]} 31. Qe2 {[%emt 0:02:57]} d5 {[%emt 0:00:33]} 32. Re1 {[%emt 0:01:54]} Rc6 {[%emt 0:00:52]} 33. Qd2 {[%emt 0:00:36]} Qa7 {[%emt 0:03:59]} 34. Bb5 {[%emt 0:01:44]} Rc8 {[%emt 0:00:05]} 35. a4 {[%emt 0:00:29]} d4 {[%emt 0:00:40]} 36. Be5 {[%emt 0:00:49]} Rd8 {[%emt 0:01:13]} 37. Rd1 {[%emt 0:01:09]} Qb7 {[%emt 0:05:14]} 38. Qe2 {[%emt 0:00:57]} Ng4 {[%emt 0:00:51]} 39. Bf4 {[%emt 0:00:38]} Nf6 {[%emt 0:00:53]} 40. Rc1 {[%emt 0:00:26]} Nd5 {[%emt 0:01:00]} 41. Bd2 {[%emt 0:00:09]} Rd6 {[%emt 0:00:58]} 42. Bxa5 {[%emt 0:00:45]} Re6 {[%emt 0:00:14]} 43. Qc4 {[%emt 0:00:14]} Kh7 {[%emt 0:00:44]} 44. Bc6 {[%emt 0:00:13]} Qxb2 {[%emt 0:00:08]} 45. Bxd5 {[%emt 0:00:23]} Re2 {[%emt 0:00:35]} 46. Bc7 {[%emt 0:00:00]} d3 {[%emt 0:00:05]} 47. Bg3 {[%emt 0:01:33]} Rc2 {[%emt 0:00:50]} 48. Rxc2 {[%emt 0:00:28]} dxc2 {[%emt 0:00:03]} 49. Bf4 {[%emt 0:00:05]} Bh6 {[%emt 0:00:15]} 50. Be4 {[%emt 0:01:15]} Bxf4 {[%emt 0:00:14]} 51. Qxf7+ {[%emt 0:00:13]} Kh8 {[%emt 0:01:26]} 52. Qf8+ {[%emt 0:00:10]} Kh7 {[%emt 0:00:01]} 53. Qf7+ Kh8 54. Qe8+ {[%emt 0:00:26]} Kg7 {[%emt 0:00:01]} 55. Qxg6+ {[%emt 0:00:01]} Kf8 {[%emt 0:00:01]} 56. Qf5+ {[%emt 0:00:38]} Ke7 {[%emt 0:01:38]} 57. Qc5+ {[%emt 0:00:16]} Bd6 {[%emt 0:00:19]} 58. Qxc2 {[%emt 0:00:11]} Qa1+ {[%emt 0:01:27]} 59. Qb1 {[%emt 0:00:01]} Qxa4 {[%emt 0:00:31]} 60. Qb7+ {[%emt 0:01:31]} Qd7 {[%emt 0:00:51]} 61. Qd5 {[%emt 0:00:24]} Qh3 {[%emt 0:00:42]} 62. Qg5+ {[%emt 0:00:05]} Ke6 {[%emt 0:00:14]} 63. Qg6+ {[%emt 0:00:30]} Ke7 {[%emt 0:00:39]} 64. Qh7+ {[%emt 0:01:58]} Kd8 {[%emt 0:00:20]} 65. Qh8+ {[%emt 0:00:23]} Kc7 {[%emt 0:00:28]} 66. Qc3+ {[%emt 0:00:02]} Kd8 {[%emt 0:00:32]} 67. Qf6+ {[%emt 0:00:21]} Kc7 {[%emt 0:00:09]} 68. Qf7+ {[%emt 0:00:04]} Kd8 {[%emt 0:00:12]} 69. Qf6+ {[%emt 0:00:22]} Kc7 {[%emt 0:00:05]} 70. Qf7+ {[%emt 0:00:01]} Kd8 {[%emt 0:00:06]} 71. Qf6+ {[%emt 0:00:16]} 1/2-1/2

[Event "26th Abu Dhabi Master 2019"]
[Site "Abu Dhabi"]
[Date "2019.08.04"]
[Round "4.32"]
[White "Kiriakov, Petr"]
[Black "Moksh Amit Doshi"]
[Result "1-0"]
[ECO "E35"]
[WhiteElo "2516"]
[BlackElo "2229"]
[Annotator "ChessBase"]
[PlyCount "74"]
[EventDate "2019.08.02"]
[EventType "swiss"]
[EventCountry "UAE"]
[SourceTitle "playchess.com"]
[Source "ChessBase"]
[SourceQuality "1"]
[TimeControl "5400+30"]

1. d4 Nf6 2. c4 e6 3. Nc3 Bb4 4. Qc2 d5 5. cxd5 exd5 6. Bg5 h6 7. Bxf6 Qxf6 8. a3 Bxc3+ 9. Qxc3 O-O 10. e3 Bf5 11. Ne2 c6 12. Ng3 Bg6 13. Be2 Nd7 14. O-O c5 15. Rad1 cxd4 16. Rxd4 Rfc8 17. Qb3 Nb6 18. f4 Bc2 19. Qb4 Qe6 20. Qd2 f5 21. Rc1 Bb3 22. Rxc8+ Rxc8 23. Bd3 g6 24. Ne2 Bc4 25. Nc3 Bxd3 26. Qxd3 Rd8 27. a4 a5 28. Kf2 Rd6 29. b3 Kh7 30. Qb5 Qe7 31. g3 Rc6 32. Nxd5 Rc2+ 33. Kf3 g5 34. fxg5 Qxg5 35. Qxb6 Qh5+ 36. g4 Qh3+ 37. Kf4 Rf2+ {Ke4} 1-0

[Event "26th Abu Dhabi Master 2019"]
[Site "Abu Dhabi"]
[Date "2019.08.04"]
[Round "4.33"]
[White "Kuybokarov, Temur"]
[Black "Srijit Paul"]
[Result "1-0"]
[ECO "D31"]
[WhiteElo "2511"]
[BlackElo "2298"]
[Annotator "ChessBase"]
[PlyCount "67"]
[EventDate "2019.08.02"]
[EventType "swiss"]
[EventCountry "UAE"]
[SourceTitle "playchess.com"]
[Source "ChessBase"]
[SourceQuality "1"]
[TimeControl "5400+30"]

1. d4 d5 2. c4 c6 3. Nc3 e6 4. e4 dxe4 5. Nxe4 Bb4+ 6. Bd2 Qxd4 7. Bxb4 Qxe4+ 8. Be2 Qxg2 9. Bf3 Qg5 10. Ne2 Ne7 11. Rg1 Qf6 12. Nc3 Nf5 13. Ne4 Qe5 14. Qd2 f6 15. O-O-O Kf7 16. Bd6 Qd4 17. Qxd4 Nxd4 18. Rxd4 e5 19. Rd2 Be6 20. Nc5 Bc8 21. Ne4 Be6 22. Ba3 g6 23. Nd6+ Kg7 24. Nxb7 Bxc4 25. Na5 Bf7 26. b3 Rc8 27. Rc2 g5 28. Bg4 Rg8 29. Nxc6 Bg6 30. Rc5 Nxc6 31. Rxc6 f5 32. Be2 Rac8 33. Rc4 g4 34. Rd1 1-0

[Event "26th Abu Dhabi Master 2019"]
[Site "Abu Dhabi"]
[Date "2019.08.04"]
[Round "4.34"]
[White "Vasquez Schroeder, Rodrigo"]
[Black "Aronyak Ghosh"]
[Result "0-1"]
[ECO "A13"]
[WhiteElo "2496"]
[BlackElo "2349"]
[Annotator "ChessBase"]
[PlyCount "66"]
[EventDate "2019.08.02"]
[EventType "swiss"]
[EventCountry "UAE"]
[SourceTitle "playchess.com"]
[Source "ChessBase"]
[SourceQuality "1"]
[TimeControl "5400+30"]

1. c4 {[%emt 0:00:00]} e6 {[%emt 0:00:51]} 2. Nf3 {[%emt 0:00:03]} d5 {[%emt 0:01:10]} 3. d4 {[%emt 0:00:24]} c6 {[%emt 0:00:29]} 4. Qc2 {[%emt 0:00:19]} Bd6 {[%emt 0:01:07]} 5. Bg5 {[%emt 0:00:18]} Ne7 {[%emt 0:02:15]} 6. Nbd2 {[%emt 0:02:21]} f6 {[%emt 0:02:10]} 7. Bh4 {[%emt 0:00:28]} Nf5 {[%emt 0:01:25]} 8. Bg3 {[%emt 0:00:27]} Nxg3 {[%emt 0:00:10]} 9. hxg3 {[%emt 0:00:06]} f5 {[%emt 0:00:04]} 10. e3 {[%emt 0:02:04]} Qf6 {[%emt 0:07:53]} 11. Bd3 {[%emt 0:01:44]} g6 {[%emt 0:00:34]} 12. O-O-O {[%emt 0:04:26]} Nd7 {[%emt 0:02:10]} 13. Kb1 {[%emt 0:01:50]} Qe7 {[%emt 0:14:36]} 14. Nh4 {[%emt 0:01:36]} O-O {[%emt 0:01:18]} 15. f4 {[%emt 0:02:32]} Nf6 {[%emt 0:02:11]} 16. Ndf3 {[%emt 0:00:28]} Bd7 {[%emt 0:05:58]} 17. Ng5 {[%emt 0:05:42]} Qg7 {[%emt 0:13:35]} 18. Nhf3 {[%emt 0:01:51]} h6 {[%emt 0:01:15]} 19. Nh3 {[%emt 0:00:26]} Rfc8 {[%emt 0:02:54]} 20. c5 {[%emt 0:02:08]} Bc7 {[%emt 0:00:54]} 21. Ne5 {[%emt 0:01:37]} Bxe5 {[%emt 0:01:37]} 22. dxe5 {[%emt 0:01:55]} Ng4 {[%emt 0:00:16]} 23. Rhe1 {[%emt 0:02:44]} Qe7 {[%emt 0:00:35]} 24. Qc3 {[%emt 0:00:18]} h5 {[%emt 0:01:18]} 25. Be2 {[%emt 0:01:14]} Nh6 {[%emt 0:01:27]} 26. Ng5 {[%emt 0:01:23]} Nf7 {[%emt 0:00:34]} 27. Nf3 b6 {[%emt 0:01:20]} 28. Rc1 {[%emt 0:00:18]} Nd8 {[%emt 0:01:16]} 29. Ba6 {[%emt 0:07:22]} Rcb8 {[%emt 0:02:05]} 30. Nd4 {[%emt 0:00:33]} Qxc5 {[%emt 0:02:13]} 31. Qxc5 {[%emt 0:00:37]} bxc5 {[%emt 0:00:02]} 32. Rxc5 {[%emt 0:00:11]} Rb6 {[%emt 0:00:04]} 33. Be2 {[%emt 0:02:49]} Nb7 {[%emt 0:00:08]} 0-1

[Event "26th Abu Dhabi Master 2019"]
[Site "Abu Dhabi"]
[Date "2019.08.04"]
[Round "4.35"]
[White "Kathmale, Sameer"]
[Black "Sadhwani, Raunak"]
[Result "0-1"]
[ECO "A10"]
[WhiteElo "2326"]
[BlackElo "2477"]
[Annotator "ChessBase"]
[PlyCount "69"]
[EventDate "2019.08.02"]
[EventType "swiss"]
[EventCountry "UAE"]
[SourceTitle "playchess.com"]
[Source "ChessBase"]
[SourceQuality "1"]
[TimeControl "5400+30"]

1. c4 d6 2. g3 e5 3. Bg2 Nc6 4. Nc3 g6 5. Rb1 a5 6. a3 Be6 7. d3 Bg7 8. Nd5 f5 9. e3 Nf6 10. Ne2 O-O 11. O-O Rb8 12. Nec3 Ne7 13. Qa4 c6 14. Nxe7+ Qxe7 15. Qxa5 e4 16. Qb4 exd3 17. Rd1 b5 18. cxb5 c5 19. Qh4 c4 20. b3 Rfc8 21. bxc4 Bxc4 22. Bb2 Qe6 23. a4 h6 24. e4 Ng4 25. exf5 Qxf5 26. Ne4 g5 27. Qh3 d5 28. Bxg7 dxe4 29. Bd4 Be6 30. Qh5 Bf7 31. Qh3 Rc4 32. Ba7 Rb7 33. a5 Rxa7 34. b6 Qxf2+ 35. Kh1 0-1

[Event "26th Abu Dhabi Master 2019"]
[Site "Abu Dhabi"]
[Date "2019.08.04"]
[Round "4.36"]
[White "Zhang, Xiaowen"]
[Black "Costachi, Mihnea"]
[Result "1/2-1/2"]
[ECO "C76"]
[WhiteElo "2318"]
[BlackElo "2471"]
[Annotator "ChessBase"]
[PlyCount "35"]
[EventDate "2019.08.02"]
[EventType "swiss"]
[EventCountry "UAE"]
[SourceTitle "playchess.com"]
[Source "ChessBase"]
[SourceQuality "1"]
[TimeControl "5400+30"]

1. e4 {[%emt 0:00:00]} e5 {[%emt 0:02:06]} 2. Nf3 {[%emt 0:03:15]} Nc6 {[%emt 0:00:06]} 3. Bb5 {[%emt 0:00:05]} a6 {[%emt 0:00:04]} 4. Ba4 {[%emt 0:00:03]} d6 {[%emt 0:00:14]} 5. c3 {[%emt 0:02:00]} Bd7 {[%emt 0:00:36]} 6. d4 {[%emt 0:01:13]} g6 {[%emt 0:00:24]} 7. O-O {[%emt 0:00:35]} Bg7 {[%emt 0:00:04]} 8. h3 {[%emt 0:12:22]} Nf6 {[%emt 0:00:51]} 9. Re1 {[%emt 0:00:13]} O-O {[%emt 0:02:16]} 10. Nbd2 {[%emt 0:05:03]} Re8 {[%emt 0:01:33]} 11. a3 {[%emt 0:02:57]} b5 {[%emt 0:08:43]} 12. Bb3 {[%emt 0:01:32]} Na5 {[%emt 0:00:52]} 13. Ba2 {[%emt 0:00:15]} h6 {[%emt 0:04:37]} 14. Nf1 {[%emt 0:21:31]} Nh5 {[%emt 0:24:10]} 15. dxe5 {[%emt 0:17:05]} dxe5 {[%emt 0:00:32]} 16. b4 {[%emt 0:00:55]} Nb7 {[%emt 0:06:10]} 17. Be3 Qe7 {[%emt 0:00:30]} 18. Qc1 1/2-1/2

[Event "26th Abu Dhabi Master 2019"]
[Site "Abu Dhabi"]
[Date "2019.08.04"]
[Round "4.37"]
[White "Vignesh N R"]
[Black "Pranesh M"]
[Result "1-0"]
[ECO "C50"]
[WhiteElo "2466"]
[BlackElo "2343"]
[Annotator "ChessBase"]
[PlyCount "69"]
[EventDate "2019.08.02"]
[EventType "swiss"]
[EventCountry "UAE"]
[SourceTitle "playchess.com"]
[Source "ChessBase"]
[SourceQuality "1"]
[TimeControl "5400+30"]

1. e4 {[%emt 0:00:27]} e5 {[%emt 0:00:00]} 2. Nf3 {[%emt 0:00:10]} Nc6 {[%emt 0:00:00]} 3. Bc4 {[%emt 0:00:57]} Bc5 {[%emt 0:00:00]} 4. O-O {[%emt 0:00:28]} Nf6 {[%emt 0:00:00]} 5. d3 {[%emt 0:00:08]} O-O {[%emt 0:00:00]} 6. Re1 {[%emt 0:00:17]} a6 {[%emt 0:00:58]} 7. c3 {[%emt 0:00:22]} d6 {[%emt 0:00:43]} 8. a4 {[%emt 0:00:42]} Ba7 {[%emt 0:00:54]} 9. h3 {[%emt 0:05:44]} h6 {[%emt 0:00:40]} 10. Nbd2 {[%emt 0:00:06]} Be6 {[%emt 0:00:35]} 11. b4 {[%emt 0:00:40]} Qd7 {[%emt 0:01:13]} 12. Rb1 {[%emt 0:10:02]} Ne7 {[%emt 0:09:25]} 13. Bxe6 {[%emt 0:03:19]} fxe6 {[%emt 0:03:33]} 14. b5 {[%emt 0:00:22]} Ng6 {[%emt 0:01:43]} 15. Nc4 {[%emt 0:01:01]} Rad8 {[%emt 0:06:43]} 16. Ba3 {[%emt 0:09:20]} axb5 {[%emt 0:01:46]} 17. axb5 {[%emt 0:00:58]} Bb8 {[%emt 0:06:16]} 18. d4 {[%emt 0:07:21]} exd4 {[%emt 0:01:12]} 19. cxd4 {[%emt 0:00:02]} b6 {[%emt 0:00:38]} 20. Qc2 {[%emt 0:05:52]} Nf4 {[%emt 0:03:12]} 21. Rb3 {[%emt 0:11:23]} Qf7 {[%emt 0:02:17]} 22. Nce5 {[%emt 0:03:37]} dxe5 {[%emt 0:05:35]} 23. Nxe5 {[%emt 0:00:47]} Qh5 {[%emt 0:00:27]} 24. Bxf8 {[%emt 0:00:06]} Rxf8 {[%emt 0:00:33]} 25. Rf3 {[%emt 0:06:10]} Nh7 {[%emt 0:03:25]} 26. Qc4 {[%emt 0:06:55]} Ng5 27. Rg3 {[%emt 0:00:30]} Qh4 28. Ree3 {[%emt 0:00:30]} c5 29. bxc6 {[%emt 0:00:30]} Bc7 30. Nf3 {[%emt 0:00:30]} Nxf3+ 31. Rexf3 {[%emt 0:00:30]} Qh5 32. e5 {[%emt 0:00:30]} Qf5 33. Rxf4 {[%emt 0:00:30]} Qxf4 34. Rf3 {[%emt 0:00:30]} Qxf3 35. gxf3 {[%emt 0:00:30]} 1-0

[Event "26th Abu Dhabi Master 2019"]
[Site "Abu Dhabi"]
[Date "2019.08.04"]
[Round "4.38"]
[White "Bhambure, Shantanu"]
[Black "Shyaamnikhil P"]
[Result "0-1"]
[ECO "A41"]
[WhiteElo "2275"]
[BlackElo "2456"]
[Annotator "ChessBase"]
[PlyCount "46"]
[EventDate "2019.08.02"]
[EventType "swiss"]
[EventCountry "UAE"]
[SourceTitle "playchess.com"]
[Source "ChessBase"]
[SourceQuality "1"]
[TimeControl "5400+30"]

1. d4 d6 2. e4 Nf6 3. f3 e5 4. dxe5 dxe5 5. Qxd8+ Kxd8 6. Bc4 Ke8 7. Be3 Nbd7 8. Nd2 Bc5 9. Kf2 Ke7 10. Ne2 Bxe3+ 11. Kxe3 Rd8 12. Rhd1 Nb6 13. Bb3 g6 14. Nc4 Nxc4+ 15. Bxc4 Rxd1 16. Rxd1 Ne8 17. Nc1 Nd6 18. Bb3 a5 19. a4 Bd7 20. Nd3 f6 21. h4 Rc8 22. f4 exf4+ 23. Nxf4 c6 0-1

[Event "26th Abu Dhabi Master 2019"]
[Site "Abu Dhabi"]
[Date "2019.08.04"]
[Round "4.39"]
[White "Alavi, Sayed Javad"]
[Black "Nitish Belurkar"]
[Result "1/2-1/2"]
[ECO "E68"]
[WhiteElo "2454"]
[BlackElo "2302"]
[Annotator "ChessBase"]
[PlyCount "44"]
[EventDate "2019.08.02"]
[EventType "swiss"]
[EventCountry "UAE"]
[SourceTitle "playchess.com"]
[Source "ChessBase"]
[SourceQuality "1"]
[TimeControl "5400+30"]

1. d4 Nf6 2. c4 g6 3. Nf3 Bg7 4. g3 d6 5. Bg2 O-O 6. O-O Nbd7 7. Nc3 e5 8. e4 exd4 9. Nxd4 Re8 10. h3 Nc5 11. Re1 Bd7 12. Rb1 h6 13. b3 a5 14. Bb2 Qc8 15. Kh2 h5 16. Qd2 a4 17. b4 Ne6 18. Nf3 Qd8 19. e5 dxe5 20. Nxe5 c6 21. Rbd1 Nf8 22. Nxd7 Qxd7 1/2-1/2

[Event "26th Abu Dhabi Master 2019"]
[Site "Abu Dhabi"]
[Date "2019.08.04"]
[Round "4.40"]
[White "Vantika Agrawal"]
[Black "Gaponenko, Inna"]
[Result "1/2-1/2"]
[ECO "A62"]
[WhiteElo "2243"]
[BlackElo "2450"]
[Annotator "ChessBase"]
[PlyCount "55"]
[EventDate "2019.08.02"]
[EventType "swiss"]
[EventCountry "UAE"]
[SourceTitle "playchess.com"]
[Source "ChessBase"]
[SourceQuality "1"]
[TimeControl "5400+30"]

1. d4 {[%emt 0:00:02]} Nf6 {[%emt 0:00:00]} 2. c4 {[%emt 0:00:18]} e6 {[%emt 0:00:10]} 3. g3 {[%emt 0:00:17]} c5 {[%emt 0:00:07]} 4. d5 {[%emt 0:00:11]} exd5 {[%emt 0:00:07]} 5. cxd5 {[%emt 0:00:07]} d6 {[%emt 0:00:04]} 6. Nc3 {[%emt 0:00:26]} g6 {[%emt 0:00:08]} 7. Nf3 {[%emt 0:00:21]} Bg7 {[%emt 0:00:06]} 8. Bg2 {[%emt 0:00:04]} O-O {[%emt 0:00:07]} 9. O-O {[%emt 0:00:05]} Re8 {[%emt 0:00:04]} 10. Re1 {[%emt 0:00:21]} a6 {[%emt 0:13:23]} 11. a4 {[%emt 0:00:13]} Nbd7 {[%emt 0:00:04]} 12. Bf4 {[%emt 0:01:09]} Qc7 {[%emt 0:01:07]} 13. h3 {[%emt 0:00:39]} Ne4 {[%emt 0:15:40]} 14. Nxe4 {[%emt 0:10:32]} Rxe4 {[%emt 0:00:34]} 15. Qc2 {[%emt 0:01:41]} Rb4 {[%emt 0:10:39]} 16. Ra2 {[%emt 0:11:28]} b5 {[%emt 0:05:01]} 17. axb5 {[%emt 0:21:14]} Rxb5 {[%emt 0:00:07]} 18. Nd2 {[%emt 0:11:45]} Ne5 {[%emt 0:07:09]} 19. e4 {[%emt 0:04:21]} Rab8 {[%emt 0:02:41]} 20. b3 {[%emt 0:02:35]} Qe7 {[%emt 0:13:56]} 21. Be3 {[%emt 0:00:30]} g5 {[%emt 0:00:30]} 22. Ra3 {[%emt 0:00:30]} Qf6 {[%emt 0:14:20]} 23. Qd1 {[%emt 0:15:50]} g4 {[%emt 0:00:30]} 24. h4 {[%emt 0:00:30]} Nd3 {[%emt 0:01:12]} 25. Rf1 {[%emt 0:03:45]} Ne5 {[%emt 0:02:15]} 26. Re1 {[%emt 0:05:30]} Nd3 {[%emt 0:00:09]} 27. Rf1 {[%emt 0:00:07]} Ne5 {[%emt 0:00:03]} 28. Re1 1/2-1/2

[Event "26th Abu Dhabi Master 2019"]
[Site "Abu Dhabi"]
[Date "2019.08.04"]
[Round "4.41"]
[White "Akash Pc, Iyer"]
[Black "Kushagra Mohan"]
[Result "1-0"]
[ECO "D37"]
[WhiteElo "2441"]
[BlackElo "2250"]
[Annotator "NA"]
[PlyCount "43"]
[EventDate "2019.08.02"]
[EventType "swiss"]
[EventCountry "UAE"]
[SourceTitle "playchess.com"]
[Source "ChessBase"]
[SourceQuality "1"]
[TimeControl "5400+30"]

1. d4 {[%emt 0:00:00]} Nf6 {[%emt 0:00:00]} 2. c4 {[%emt 0:00:00]} e6 {[%emt 0:00:01]} 3. Nf3 {[%emt 0:01:33]} d5 {[%emt 0:00:11]} 4. Nc3 {[%emt 0:05:09]} a6 {[%emt 0:00:15]} 5. a4 {[%emt 0:06:52]} Be7 {[%emt 0:04:34]} 6. e3 {[%emt 0:00:47]} O-O {[%emt 0:00:17]} 7. Bd3 {[%emt 0:00:17]} Nbd7 {[%emt 0:03:27]} 8. O-O {[%emt 0:01:05]} b6 {[%emt 0:01:09]} 9. cxd5 {[%emt 0:12:01]} exd5 {[%emt 0:00:09]} 10. Ne5 {[%emt 0:00:07]} Bb7 {[%emt 0:02:33]} 11. f4 {[%emt 0:00:15]} c5 {[%emt 0:07:27]} 12. Qf3 {[%emt 0:07:23]} Re8 {[%emt 0:16:33]} 13. Bd2 {[%emt 0:08:55]} Nf8 {[%emt 0:03:20]} 14. Be1 {[%emt 0:01:59]} cxd4 {[%emt 0:03:18]} 15. exd4 {[%emt 0:00:08]} Ne4 {[%emt 0:00:45]} 16. Nxf7 {[%emt 0:09:04]} Kxf7 {[%emt 0:10:14]} 17. Nxe4 {[%emt 0:01:12]} dxe4 {[%emt 0:10:49]} 18. Bc4+ {[%emt 0:00:31]} Ne6 {[%emt 0:00:05]} 19. Qh5+ {[%emt 0:00:34]} Kf8 {[%emt 0:02:25]} 20. Bxe6 {[%emt 0:00:41]} Qxd4+ {[%emt 0:00:09]} 21. Kh1 {[%emt 0:00:25]} g6 {[%emt 0:02:54]} 22. Qxh7 1-0

[Event "26th Abu Dhabi Master 2019"]
[Site "Abu Dhabi"]
[Date "2019.08.04"]
[Round "4.42"]
[White "Ajay Krishna, S."]
[Black "Socko, Monika"]
[Result "0-1"]
[ECO "A05"]
[WhiteElo "2280"]
[BlackElo "2443"]
[Annotator "NA"]
[PlyCount "106"]
[EventDate "2019.08.02"]
[EventType "swiss"]
[EventCountry "UAE"]
[SourceTitle "playchess.com"]
[Source "ChessBase"]
[SourceQuality "1"]
[TimeControl "5400+30"]

1. Nf3 {[%emt 0:00:26]} Nf6 {[%emt 0:00:00]} 2. c4 {[%emt 0:00:18]} e6 {[%emt 0:00:59]} 3. g3 {[%emt 0:00:14]} d5 {[%emt 0:00:43]} 4. b3 {[%emt 0:00:15]} Be7 {[%emt 0:01:42]} 5. Bg2 {[%emt 0:00:37]} O-O {[%emt 0:01:00]} 6. O-O {[%emt 0:00:31]} c5 {[%emt 0:01:50]} 7. Bb2 {[%emt 0:00:35]} Nc6 {[%emt 0:00:27]} 8. e3 {[%emt 0:02:10]} b6 {[%emt 0:05:01]} 9. Nc3 {[%emt 0:01:05]} Bb7 {[%emt 0:01:44]} 10. cxd5 {[%emt 0:06:26]} exd5 {[%emt 0:04:49]} 11. d4 {[%emt 0:01:17]} Rc8 {[%emt 0:02:24]} 12. Bh3 {[%emt 0:07:47]} Rb8 {[%emt 0:00:58]} 13. Rc1 {[%emt 0:01:16]} Ba6 {[%emt 0:07:42]} 14. Re1 {[%emt 0:00:23]} c4 {[%emt 0:03:14]} 15. Ne5 {[%emt 0:15:20]} Na5 {[%emt 0:00:14]} 16. bxc4 {[%emt 0:04:36]} dxc4 {[%emt 0:11:38]} 17. a4 {[%emt 0:07:36]} Bb4 {[%emt 0:04:37]} 18. Rf1 {[%emt 0:00:52]} Qe7 {[%emt 0:01:39]} 19. Qc2 {[%emt 0:07:57]} Bb7 {[%emt 0:11:49]} 20. Na2 {[%emt 0:06:20]} Be4 {[%emt 0:11:30]} 21. Qe2 {[%emt 0:00:30]} Bd6 {[%emt 0:00:30]} 22. Nc3 {[%emt 0:00:30]} Bxe5 {[%emt 0:00:30]} 23. dxe5 {[%emt 0:00:30]} Qxe5 24. Nxe4 Qxe4 25. Bxf6 {[%emt 0:11:01]} gxf6 {[%emt 0:01:30]} 26. Qh5 {[%emt 0:04:16]} Qg6 {[%emt 0:00:05]} 27. Qb5 {[%emt 0:02:54]} Rfd8 {[%emt 0:01:05]} 28. Rfd1 {[%emt 0:02:50]} Qg5 {[%emt 0:04:43]} 29. Bf5 {[%emt 0:00:54]} Qh5 {[%emt 0:02:33]} 30. Rd7 {[%emt 0:00:45]} Qf3 {[%emt 0:06:19]} 31. Rcd1 {[%emt 0:04:37]} Qxd1+ {[%emt 0:07:16]} 32. Rxd1 {[%emt 0:00:09]} Rxd1+ {[%emt 0:00:02]} 33. Kg2 {[%emt 0:00:06]} Rbd8 {[%emt 0:00:02]} 34. Be4 {[%emt 0:00:19]} Kf8 {[%emt 0:03:50]} 35. Qf5 {[%emt 0:00:57]} Ke7 {[%emt 0:00:18]} 36. Qxh7 {[%emt 0:00:16]} c3 {[%emt 0:01:04]} 37. Bc2 {[%emt 0:00:56]} R1d2 {[%emt 0:01:36]} 38. Qe4+ {[%emt 0:01:02]} Kd7 {[%emt 0:00:10]} 39. h4 {[%emt 0:00:59]} Nc6 {[%emt 0:01:39]} 40. h5 {[%emt 0:02:21]} Ne7 {[%emt 0:00:02]} 41. h6 {[%emt 0:05:36]} f5 {[%emt 0:00:43]} 42. Qb7+ {[%emt 0:00:20]} Kd6 {[%emt 0:00:02]} 43. Qa6 {[%emt 0:00:53]} Nd5 {[%emt 0:00:49]} 44. Bb3 {[%emt 0:01:11]} Nxe3+ {[%emt 0:00:51]} 45. Kh3 {[%emt 0:00:11]} Rh8 {[%emt 0:00:34]} 46. Kh4 {[%emt 0:00:29]} Rxh6+ {[%emt 0:00:09]} 47. Kg5 {[%emt 0:00:01]} Rg6+ {[%emt 0:00:40]} 48. Kf4 {[%emt 0:00:01]} Ng2+ {[%emt 0:01:04]} 49. Kf3 {[%emt 0:00:29]} c2 {[%emt 0:01:05]} 50. Bxc2 {[%emt 0:01:11]} Ne1+ {[%emt 0:00:03]} 51. Ke3 {[%emt 0:00:04]} Rxc2 {[%emt 0:00:01]} 52. Qxa7 {[%emt 0:00:04]} Re6+ {[%emt 0:00:25]} 53. Kf4 {[%emt 0:00:03]} Rxf2+ {[%emt 0:00:05]} 0-1